fUST/lending_fUST_20250624
["ID","MTS","AMOUNT","RATE_DAILY","PERIOD"]
[367192522,1750697456347,-1000.0,0.00021421,2]
[367192523,1750697456357,-1000.0,0.00021421,2]
[367192524,1750697456369,-1000.0,0.00021421,2]
[367192525,1750697456379,-1000.0,0.00021421,2]
[367192526,1750697456389,-1000.0,0.00021421,2]
[367192527,1750697456399,-1000.0,0.00021421,2]
[367192528,1750697456408,-504.07536321,0.00021421,2]
[367192529,1750697456418,-500.0,0.00021421,2]
[367192530,1750697456428,-500.0,0.00021425,2]
[367192531,1750697456438,-500.0,0.00021425,2]
[367192532,1750697456447,-1680.0,0.00021464,2]
[367192533,1750697456457,-263.06,0.00021479,2]
[367192534,1750697456466,-460.0,0.0002148,2]
[367192535,1750697456476,-460.0,0.0002148,2]
[367192536,1750697456485,-460.0,0.0002148,2]
[367192537,1750697456495,-460.0,0.0002148,2]
[367192538,1750697456504,-460.0,0.0002148,2]
[367192539,1750697456513,-460.0,0.0002148,2]
[367192540,1750697456522,-835.53,0.0002148,2]
[367192541,1750697456576,-500.0,0.0002148,2]
[367192542,1750697456586,-460.0,0.0002148,2]
[367192543,1750697456595,-759.73,0.0002148,2]
[367192544,1750697456604,-460.0,0.0002148,2]
[367192545,1750697456615,-548.36,0.0002148,2]
[367192546,1750697456624,-1104.61,0.0002148,2]
[367192547,1750697456634,-460.0,0.0002148,2]
[367192548,1750697456643,-717.0,0.0002148,2]
[367192549,1750697456651,-555.53,0.0002148,2]
[367192550,1750697456660,-460.0,0.0002148,2]
[367192551,1750697456669,-460.0,0.0002148,2]
[367192552,1750697456678,-460.0,0.0002148,2]
[367192553,1750697456687,-460.0,0.0002148,2]
[367192554,1750697456696,-495.63145757,0.0002148,2]
[367192555,1750697456705,-460.0,0.0002148,2]
[367192556,1750697456714,-460.0,0.0002148,2]
[367192557,1750697456723,-460.0,0.0002148,2]
[367192558,1750697456733,-460.0,0.0002148,2]
[367192559,1750697456742,-460.0,0.0002148,2]
[367192560,1750697456751,-460.0,0.0002148,2]
[367192561,1750697456760,-513.86,0.0002148,2]
[367192562,1750697456769,-654.29,0.0002148,2]
[367192563,1750697456778,-1299.81,0.0002148,2]
[367192564,1750697456787,-460.0,0.0002148,2]
[367192565,1750697456796,-460.0,0.0002148,2]
[367192566,1750697456805,-460.0,0.0002148,2]
[367192567,1750697456815,-460.0,0.0002148,2]
[367192568,1750697456824,-460.0,0.0002148,2]
[367192569,1750697456833,-460.0,0.0002148,2]
[367192570,1750697456842,-333.63718952,0.0002148,2]
[367192571,1750697456851,-460.0,0.0002148,2]
[367192572,1750697456860,-460.0,0.0002148,2]
[367192573,1750697456871,-435.64755293,0.0002148,2]
[367192574,1750697456880,-460.0,0.0002148,2]
[367192575,1750697456889,-460.0,0.0002148,2]
[367192576,1750697456898,-460.0,0.0002148,2]
[367192577,1750697456908,-680.11,0.0002148,2]
[367192578,1750697456917,-460.0,0.00021492,2]
[367192579,1750697456927,-460.0,0.00021492,2]
[367192580,1750697456936,-460.0,0.00021492,2]
[367192581,1750697456945,-941.81,0.00021492,2]
[367192582,1750697456954,-1302.16,0.00021492,2]
[367192583,1750697456964,-460.0,0.00021492,2]
[367192584,1750697456973,-1027.63,0.00021492,2]
[367192585,1750697456982,-3007.82,0.00021492,2]
[367192586,1750697456992,-2258.64,0.00021492,2]
[367192587,1750697457001,-620.37,0.00021492,2]
[367192588,1750697457011,-584.06,0.000215,2]
[367192589,1750697457021,-1567.77,0.000215,2]
[367192590,1750697457030,-151.0,0.000215,3]
[367192591,1750697457040,-72059.03729809,0.00021511,2]
[367192592,1750697457050,-20410.66404758,0.00021511,2]
[367192593,1750697457060,-567862.16873,0.00021511,2]
[367192594,1750697457070,-151.78316967,0.00021512,2]
[367192595,1750697457080,-152.96748886,0.00021512,2]
[367192596,1750697457089,-151.0,0.00021512,2]
[367192597,1750697457098,-207.4,0.00021512,2]
[367192598,1750697457107,-722.95451599,0.00021512,2]
[367192599,1750697457120,-4178.03795096,0.00021512,2]
[367192600,1750697457129,-500.0,0.00021512,2]
[367192601,1750697457138,-500.0,0.00021512,2]
[367192602,1750697457148,-500.0,0.00021512,2]
[367192603,1750697457156,-500.0,0.00021512,2]
[367192604,1750697457165,-500.0,0.00021512,2]
[367192605,1750697457175,-500.0,0.00021512,2]
[367192606,1750697457184,-500.0,0.00021512,2]
[367192607,1750697457194,-500.0,0.00021512,2]
[367192608,1750697457206,-500.0,0.00021512,2]
[367192609,1750697457215,-500.0,0.00021512,2]
[367192610,1750697457224,-500.0,0.00021512,2]
[367192611,1750697457234,-500.0,0.00021512,2]
[367192612,1750697457244,-500.0,0.00021512,2]
[367192613,1750697457253,-500.0,0.00021512,2]
[367192614,1750697457262,-500.0,0.00021512,2]
[367192615,1750697457272,-500.0,0.00021512,2]
[367192616,1750697457282,-500.0,0.00021512,2]
[367192617,1750697457292,-500.0,0.00021512,2]
[367192618,1750697457301,-500.0,0.00021512,2]
[367192619,1750697457310,-500.0,0.00021512,2]
[367192620,1750697457320,-500.0,0.00021512,2]
[367192621,1750697457329,-500.0,0.00021512,2]
[367192622,1750697457338,-151.0,0.00021512,2]
[367192623,1750697457348,-151.0,0.00021512,2]
[367192624,1750697457357,-25000.0,0.00021512,2]
[367192625,1750697457369,-13374.06200854,0.00021512,2]
[367192626,1750697457379,-805.9,0.00021528,2]
[367192627,1750697457388,-460.0,0.00021528,2]
[367192628,1750697457398,-618.81,0.00021528,2]
[367192629,1750697457407,-473.78,0.00021528,2]
[367192630,1750697457417,-460.0,0.00021528,2]
[367192631,1750697457426,-664.37,0.00021528,2]
[367192632,1750697457435,-460.0,0.00021528,2]
[367192633,1750697457445,-618.48,0.00021528,2]
[367192634,1750697457454,-730.09,0.00021528,2]
[367192635,1750697457463,-924.89,0.00021528,2]
[367192636,1750697457473,-742.52,0.00021529,2]
[367192637,1750697457482,-767.77,0.00021529,2]
[367192638,1750697457492,-460.0,0.00021529,2]
[367192639,1750697457502,-460.0,0.00021529,2]
[367192640,1750697457511,-460.0,0.00021529,2]
[367192641,1750697457521,-3331.18,0.00021529,2]
[367192642,1750697457530,-597.17,0.00021529,2]
[367192643,1750697457540,-1808.96,0.00021529,2]
[367192644,1750697457550,-522.83,0.00021529,2]
[367192645,1750697457560,-993.39,0.00021529,2]
[367192646,1750697457569,-460.0,0.00021529,2]
[367192647,1750697457579,-486.80236242,0.00021529,2]
[367192648,1750697457589,-460.0,0.00021529,2]
[367192649,1750697457600,-1938.6,0.00021529,2]
[367192650,1750697457609,-4171.75,0.00021529,2]
[367192651,1750697457621,-460.0,0.00021529,2]
[367192652,1750697457631,-798.39,0.00021529,2]
[367192653,1750697457640,-662.12,0.00021529,2]
[367192654,1750697457650,-644.67,0.00021529,2]
[367192655,1750697457659,-1922.25,0.00021529,2]
[367192656,1750697457669,-500.56,0.00021529,2]
[367192657,1750697457678,-460.0,0.00021529,2]
[367192658,1750697457687,-1338.64,0.00021529,2]
[367192659,1750697457696,-2510.12,0.00021529,2]
[367192660,1750697457706,-460.0,0.00021529,2]
[367192661,1750697457715,-1996.8,0.00021529,2]
[367192662,1750697457724,-460.0,0.00021529,2]
[367192663,1750697457733,-945.39,0.00021529,2]
[367192664,1750697457742,-4607.43,0.00021529,2]
[367192665,1750697457751,-460.0,0.00021529,2]
[367192666,1750697457760,-607.26,0.00021529,2]
[367192667,1750697457770,-460.0,0.00021529,2]
[367192668,1750697457779,-6980.70940299,0.00021543,2]
[367192669,1750697457789,-437.24886619,0.00021559,2]
[367192670,1750697457798,-460.0,0.0002158,2]
[367192671,1750697457808,-460.0,0.0002158,2]
[367192672,1750697457817,-295.19795197,0.0002158,2]
[367192673,1750697457827,-336.14451815,0.0002158,2]
[367192674,1750697457836,-460.0,0.0002158,2]
[367192675,1750697457845,-432.6615074,0.0002158,2]
[367192676,1750697457854,-460.0,0.0002158,2]
[367192677,1750697457866,-460.0,0.0002158,2]
[367192678,1750697457876,-460.0,0.0002158,2]
[367192679,1750697457885,-460.0,0.0002158,2]
[367192680,1750697457894,-461.66943298,0.0002158,2]
[367192681,1750697457903,-515.87976678,0.0002158,2]
[367192682,1750697457912,-460.0,0.0002158,2]
[367192683,1750697457921,-463.27,0.0002158,2]
[367192684,1750697457931,-839.46,0.0002158,2]
[367192685,1750697457939,-1010.76,0.0002158,2]
[367192686,1750697457948,-460.0,0.0002158,2]
[367192687,1750697457957,-872.24,0.0002158,2]
[367192688,1750697457966,-460.0,0.0002158,2]
[367192689,1750697457975,-460.0,0.0002158,2]
[367192690,1750697457985,-460.0,0.0002158,2]
[367192691,1750697457995,-772.7,0.0002158,2]
[367192692,1750697458004,-500.0,0.0002158,2]
[367192693,1750697458013,-500.0,0.0002158,2]
[367192694,1750697458022,-460.0,0.0002158,2]
[367192695,1750697458032,-460.0,0.0002158,2]
[367192696,1750697458041,-899.58,0.0002158,2]
[367192697,1750697458051,-460.0,0.0002158,2]
[367192698,1750697458060,-248.09604341,0.0002158,2]
[367192699,1750697458069,-460.0,0.0002158,2]
[367192700,1750697458078,-460.0,0.0002158,2]
[367192701,1750697458087,-668.36,0.0002158,2]
[367192702,1750697458096,-1784.25,0.0002158,2]
[367192703,1750697458106,-460.0,0.0002158,2]
[367192704,1750697458118,-460.0,0.0002158,2]
[367192705,1750697458127,-731.7,0.0002158,2]
[367192706,1750697458137,-460.0,0.0002158,2]
[367192707,1750697458146,-460.0,0.0002158,2]
[367192708,1750697458155,-460.0,0.0002158,2]
[367192709,1750697458165,-460.0,0.0002158,2]
[367192710,1750697458174,-697.54,0.0002158,2]
[367192711,1750697458183,-460.0,0.0002158,2]
[367192712,1750697458193,-2125.8,0.0002158,2]
[367192713,1750697458207,-2125.8,0.0002158,2]
[367192714,1750697458216,-460.0,0.0002158,2]
[367192715,1750697458226,-460.0,0.0002158,2]
[367192716,1750697458235,-460.0,0.0002158,2]
[367192717,1750697458244,-801.56,0.0002158,2]
[367192718,1750697458253,-847.26,0.0002158,2]
[367192719,1750697458262,-460.0,0.0002158,2]
[367192720,1750697458272,-460.0,0.0002158,2]
[367192721,1750697458282,-1053.09,0.0002158,2]
[367192722,1750697458291,-994.48,0.0002158,2]
[367192723,1750697458300,-460.0,0.0002158,2]
[367192724,1750697458309,-727.12,0.0002158,2]
[367192725,1750697458319,-525.06,0.0002158,2]
[367192726,1750697458329,-725.26,0.0002158,2]
[367192727,1750697458339,-1046.81,0.0002158,2]
[367192728,1750697458348,-487.28631749,0.0002158,2]
[367192729,1750697458357,-500.0,0.00021581,2]
[367192730,1750697458372,-500.0,0.00021581,2]
[367192731,1750697458381,-2125.8,0.00021581,2]
[367192732,1750697458391,-460.0,0.0002159,2]
[367192733,1750697458400,-460.0,0.0002159,2]
[367192734,1750697458409,-460.0,0.0002159,2]
[367192735,1750697458419,-460.0,0.0002159,2]
[367192736,1750697458428,-500.0,0.0002159,2]
[367192737,1750697458437,-720.83,0.0002159,2]
[367192738,1750697458445,-460.0,0.0002159,2]
[367192739,1750697458454,-460.0,0.0002159,2]
[367192740,1750697458463,-460.0,0.0002159,2]
[367192741,1750697458473,-460.0,0.0002159,2]
[367192742,1750697458482,-460.0,0.0002159,2]
[367192743,1750697458491,-460.0,0.0002159,2]
[367192744,1750697458501,-460.0,0.0002159,2]
[367192745,1750697458510,-2125.8,0.0002159,2]
[367192746,1750697458520,-500.0,0.00021591,2]
[367192747,1750697458530,-500.0,0.00021592,2]
[367192748,1750697458539,-500.0,0.00021592,2]
[367192749,1750697458548,-500.0,0.00021592,2]
[367192750,1750697458557,-500.0,0.00021592,2]
[367192751,1750697458567,-500.0,0.00021592,2]
[367192752,1750697458576,-500.0,0.00021592,2]
[367192753,1750697458586,-2125.8,0.00021592,2]
[367192754,1750697458595,-2125.8,0.00021592,2]
[367192755,1750697458605,-2125.8,0.00021592,2]
[367192756,1750697458614,-2125.8,0.00021592,2]
[367192757,1750697458625,-645.41210402,0.00021594,2]
[367192758,1750697458635,-500.0,0.0002162,2]
[367192759,1750697458645,-2125.8,0.0002162,2]
[367192760,1750697458654,-197.83542919,0.00021621,2]
[367192761,1750697458664,-1000.0,0.00021621,2]
[367192762,1750697458673,-1000.0,0.00021621,2]
[367192763,1750697458683,-1082.56984767,0.00021621,2]
[367192764,1750697458692,-1000.0,0.00021621,2]
[367192765,1750697458701,-460.0,0.00021641,2]
[367192766,1750697458711,-460.0,0.00021641,2]
[367192767,1750697458720,-460.0,0.00021641,2]
[367192768,1750697458730,-524.08,0.00021641,2]
[367192769,1750697458739,-768.34,0.00021641,2]
[367192770,1750697458749,-768.34,0.00021641,2]
[367192771,1750697458758,-460.0,0.00021641,2]
[367192772,1750697458768,-462.01,0.00021641,2]
[367192773,1750697458777,-1080.4,0.00021641,2]
[367192774,1750697458787,-460.0,0.00021641,2]
[367192775,1750697458797,-523.6,0.00021641,2]
[367192776,1750697458807,-460.0,0.00021641,2]
[367192777,1750697458818,-666.99,0.00021641,2]
[367192778,1750697458828,-460.0,0.00021641,2]
[367192779,1750697458838,-649.66,0.00021641,2]
[367192780,1750697458847,-460.0,0.00021641,2]
[367192781,1750697458856,-577.48,0.00021641,2]
[367192782,1750697458868,-460.0,0.00021641,2]
[367192783,1750697458877,-460.0,0.00021641,2]
[367192784,1750697458887,-460.0,0.00021641,2]
[367192785,1750697458896,-803.94,0.00021641,2]
[367192786,1750697458905,-941.33,0.00021641,2]
[367192787,1750697458915,-460.0,0.00021641,2]
[367192788,1750697458924,-463.65,0.00021641,2]
[367192789,1750697458933,-460.0,0.00021641,2]
[367192790,1750697458943,-734.18,0.00021641,2]
[367192791,1750697458952,-460.0,0.00021641,2]
[367192792,1750697458961,-632.86,0.00021641,2]
[367192793,1750697458971,-460.0,0.00021641,2]
[367192794,1750697458980,-460.0,0.00021641,2]
[367192795,1750697458990,-460.0,0.00021641,2]
[367192796,1750697458999,-586.65,0.00021641,2]
[367192797,1750697459008,-783.14,0.00021641,2]
[367192798,1750697459017,-460.0,0.00021641,2]
[367192799,1750697459026,-1907.71,0.00021641,2]
[367192800,1750697459036,-691.12,0.00021641,2]
[367192801,1750697459046,-460.0,0.00021641,2]
[367192802,1750697459055,-460.0,0.00021641,2]
[367192803,1750697459064,-462.32,0.00021641,2]
[367192804,1750697459074,-460.0,0.00021641,2]
[367192805,1750697459083,-895.18,0.00021641,2]
[367192806,1750697459094,-460.0,0.00021641,2]
[367192807,1750697459103,-460.0,0.00021641,2]
[367192808,1750697459113,-677.91,0.00021641,2]
[367192809,1750697459124,-460.0,0.00021641,2]
[367192810,1750697459133,-767.32,0.00021641,2]
[367192811,1750697459143,-801.12,0.00021641,2]
[367192812,1750697459153,-984.13,0.00021641,2]
[367192813,1750697459162,-1131.78,0.00021641,2]
[367192814,1750697459173,-2069.55,0.00021641,2]
[367192815,1750697459184,-1331.56,0.00021641,2]
[367192816,1750697459196,-574.96,0.00021641,2]
[367192817,1750697459208,-530.44,0.00021641,2]
[367192818,1750697459217,-460.0,0.00021641,2]
[367192819,1750697459228,-976.96,0.00021641,2]
[367192820,1750697459239,-2037.71,0.00021641,2]
[367192821,1750697459248,-460.0,0.00021641,2]
[367192822,1750697459259,-1166.86,0.00021641,2]
[367192823,1750697459270,-658.74,0.00021641,2]
[367192824,1750697459281,-460.0,0.00021641,2]
[367192825,1750697459291,-460.0,0.00021641,2]
[367192826,1750697459301,-645.9,0.00021641,2]
[367192827,1750697459311,-607.83,0.00021641,2]
[367192828,1750697459320,-469.62692265,0.00021641,2]
[367192829,1750697459330,-548.66,0.00021641,2]
[367192830,1750697459340,-460.0,0.00021642,2]
[367192831,1750697459349,-764.48,0.00021642,2]
[367192832,1750697459359,-460.0,0.00021642,2]
[367192833,1750697459368,-821.95,0.00021642,2]
[367192834,1750697459378,-616.46,0.00021642,2]
[367192835,1750697459388,-623.62,0.00021642,2]
[367192836,1750697459399,-460.0,0.00021642,2]
[367192837,1750697459408,-460.0,0.00021642,2]
[367192838,1750697459418,-468.54,0.00021642,2]
[367192839,1750697459428,-460.0,0.00021642,2]
[367192840,1750697459438,-460.0,0.00021642,2]
[367192841,1750697459448,-460.0,0.00021642,2]
[367192842,1750697459458,-460.0,0.00021642,2]
[367192843,1750697459468,-460.0,0.00021642,2]
[367192844,1750697459477,-294.40003783,0.00021642,2]
[367192845,1750697459487,-460.0,0.00021642,2]
[367192846,1750697459498,-460.0,0.00021642,2]
[367192847,1750697459508,-699.97,0.00021642,2]
[367192848,1750697459518,-984.08,0.00021642,2]
[367192849,1750697459528,-2304.0,0.00021642,2]
[367192850,1750697459538,-845.92,0.00021642,2]
[367192851,1750697459548,-773.26,0.00021642,2]
[367192852,1750697459558,-3459.6,0.00021642,2]
[367192853,1750697459568,-460.0,0.00021642,2]
[367192854,1750697459578,-460.0,0.00021642,2]
[367192855,1750697459587,-252.90762114,0.00021642,2]
[367192856,1750697459597,-573.77,0.00021642,2]
[367192857,1750697459608,-460.0,0.00021642,2]
[367192858,1750697459619,-532.82,0.00021642,2]
[367192859,1750697459628,-460.0,0.00021642,2]
[367192860,1750697459639,-1283.0,0.00021642,2]
[367192861,1750697459649,-788.52,0.00021642,2]
[367192862,1750697459659,-5163.31,0.00021642,2]
[367192863,1750697459669,-1680.77,0.00021642,2]
[367192864,1750697459679,-587.82,0.00021642,2]
[367192865,1750697459689,-12520.38,0.00021642,2]
[367192866,1750697459699,-970.2,0.00021642,2]
[367192867,1750697459709,-1785.46,0.00021642,2]
[367192868,1750697459719,-4776.5,0.00021642,2]
[367192869,1750697459729,-1188.31,0.00021642,2]
[367192870,1750697459739,-1838.21,0.00021642,2]
[367192871,1750697459749,-460.0,0.00021642,2]
[367192872,1750697459759,-614.46,0.00021643,2]
[367192873,1750697459769,-460.0,0.00021643,2]
[367192874,1750697459779,-617.88,0.00021643,2]
[367192875,1750697459789,-1431.97,0.00021643,2]
[367192876,1750697459798,-460.0,0.00021643,2]
[367192877,1750697459808,-460.0,0.00021643,2]
[367192878,1750697459818,-909.95,0.00021643,2]
[367192879,1750697459828,-460.0,0.00021643,2]
[367192880,1750697459839,-526.76,0.00021643,2]
[367192881,1750697459850,-460.0,0.00021643,2]
[367192882,1750697459860,-780.77,0.00021643,2]
[367192883,1750697459871,-460.0,0.00021643,2]
[367192884,1750697459881,-460.0,0.00021643,2]
[367192885,1750697459891,-495.61,0.00021643,2]
[367192886,1750697459902,-460.0,0.00021643,2]
[367192887,1750697459912,-460.0,0.00021643,2]
[367192888,1750697459922,-460.0,0.00021643,2]
[367192889,1750697459932,-460.0,0.00021643,2]
[367192890,1750697459941,-460.0,0.00021643,2]
[367192891,1750697459952,-651.77,0.00021643,2]
[367192892,1750697459961,-585.51,0.00021643,2]
[367192893,1750697459971,-558.34907329,0.00021643,2]
[367192894,1750697459980,-460.0,0.00021643,2]
[367192895,1750697459989,-460.0,0.00021643,2]
[367192896,1750697459999,-460.0,0.00021643,2]
[367192897,1750697460009,-460.0,0.00021643,2]
[367192898,1750697460019,-460.0,0.00021643,2]
[367192899,1750697460030,-460.0,0.00021643,2]
[367192900,1750697460041,-2845.44,0.00021643,2]
[367192901,1750697460051,-500.0,0.00021643,2]
[367192902,1750697460062,-460.0,0.00021643,2]
[367192903,1750697460072,-806.82,0.00021643,2]
[367192904,1750697460082,-460.0,0.00021643,2]
[367192905,1750697460092,-662.46,0.00021643,2]
[367192906,1750697460102,-1029.25,0.00021643,2]
[367192907,1750697460112,-1895.61,0.00021643,2]
[367192908,1750697460123,-460.0,0.00021643,2]
[367192909,1750697460134,-1073.31,0.00021643,2]
[367192910,1750697460144,-1897.12,0.00021643,2]
[367192911,1750697460154,-460.0,0.00021643,2]
[367192912,1750697460164,-1134.25,0.00021643,2]
[367192913,1750697460174,-599.46925891,0.00021643,2]
[367192914,1750697460184,-991.59,0.00021643,2]
[367192915,1750697460195,-460.0,0.00021643,2]
[367192916,1750697460207,-588.15,0.00021643,2]
[367192917,1750697460217,-460.0,0.00021643,2]
[367192918,1750697460227,-460.0,0.00021643,2]
[367192919,1750697460237,-178.90351438,0.00021643,2]
[367192920,1750697460247,-460.0,0.00021643,2]
[367192921,1750697460257,-460.0,0.00021643,2]
[367192922,1750697460267,-870.3,0.00021643,2]
[367192923,1750697460282,-510.67,0.00021643,2]
[367192924,1750697460293,-1318.26,0.00021643,2]
[367192925,1750697460303,-460.0,0.00021643,2]
[367192926,1750697460314,-500.0,0.00021643,9]
[367192927,1750697460324,-460.0,0.00021643,2]
[367192928,1750697460335,-807.85,0.00021643,2]
[367192929,1750697460345,-460.0,0.00021643,2]
[367192930,1750697460356,-534.3414925,0.00021643,2]
[367192931,1750697460367,-460.0,0.00021643,2]
[367192932,1750697460378,-523.74,0.00021643,2]
[367192933,1750697460388,-460.0,0.00021643,2]
[367192934,1750697460398,-460.0,0.00021643,2]
[367192935,1750697460408,-480.9,0.00021643,2]
[367192936,1750697460419,-460.0,0.00021643,2]
[367192937,1750697460429,-460.0,0.00021643,2]
[367192938,1750697460439,-709.92,0.00021643,2]
[367192939,1750697460449,-460.0,0.00021643,2]
[367192940,1750697460460,-460.0,0.00021643,2]
[367192941,1750697460470,-926.56,0.00021643,2]
[367192942,1750697460480,-1047.54,0.00021643,2]
[367192943,1750697460490,-814.8,0.00021643,2]
[367192944,1750697460501,-460.0,0.00021643,2]
[367192945,1750697460511,-5076.91,0.00021643,2]
[367192946,1750697460521,-460.0,0.00021643,2]
[367192947,1750697460531,-460.0,0.00021643,2]
[367192948,1750697460541,-460.0,0.00021643,2]
[367192949,1750697460551,-639.64,0.00021643,2]
[367192950,1750697460561,-1458.11,0.00021643,2]
[367192951,1750697460572,-1180.24,0.00021643,2]
[367192952,1750697460582,-721.42,0.00021643,2]
[367192953,1750697460591,-3757.48,0.00021643,2]
[367192954,1750697460602,-460.0,0.00021643,2]
[367192955,1750697460611,-799.52,0.00021643,2]
[367192956,1750697460622,-1092.87,0.00021643,2]
[367192957,1750697460632,-460.0,0.00021643,2]
[367192958,1750697460642,-396.80810749,0.00021643,2]
[367192959,1750697460652,-460.0,0.00021643,2]
[367192960,1750697460662,-460.0,0.00021643,2]
[367192961,1750697460674,-863.84,0.00021643,2]
[367192962,1750697460686,-460.0,0.00021643,2]
[367192963,1750697460696,-460.0,0.00021643,2]
[367192964,1750697460707,-460.0,0.00021643,2]
[367192965,1750697460718,-1023.23,0.00021643,2]
[367192966,1750697460728,-815.28,0.00021643,2]
[367192967,1750697460739,-460.0,0.00021643,2]
[367192968,1750697460749,-485.2,0.00021643,2]
[367192969,1750697460759,-460.0,0.00021643,2]
[367192970,1750697460940,-460.18,0.00021643,2]
[367192971,1750697460950,-460.0,0.00021643,2]
[367192972,1750697460959,-460.0,0.00021643,2]
[367192973,1750697460969,-460.0,0.00021643,2]
[367192974,1750697460978,-644.42,0.00021643,2]
[367192975,1750697460987,-460.0,0.00021643,2]
[367192976,1750697460997,-460.0,0.00021643,2]
[367192977,1750697461006,-1098.44,0.00021643,2]
[367192978,1750697461015,-249.54147842,0.00021643,2]
[367192979,1750697461025,-500.0,0.00021643,2]
[367192980,1750697461034,-749.34,0.00021643,2]
[367192981,1750697461044,-460.0,0.00021643,2]
[367192982,1750697461053,-1500.0,0.00021668,2]
[367192983,1750697461063,-1500.0,0.00021668,2]
[367192984,1750697461073,-1500.0,0.00021668,2]
[367192985,1750697461082,-1500.0,0.00021668,2]
[367192986,1750697461091,-1500.0,0.00021668,2]
[367192987,1750697461101,-1500.0,0.00021668,2]
[367192988,1750697461111,-804.88004104,0.00021668,2]
[367192989,1750697461122,-1500.0,0.00021668,2]
[367192990,1750697461131,-1500.0,0.00021668,2]
[367192991,1750697461141,-1500.0,0.00021668,2]
[367192992,1750697461151,-1500.0,0.00021668,2]
[367192993,1750697461160,-1500.0,0.00021668,2]
[367192994,1750697461169,-500.0,0.00021673,2]
[367192995,1750697461179,-500.0,0.00021673,2]
[367192996,1750697461188,-500.0,0.00021673,2]
[367192997,1750697461199,-500.0,0.00021673,2]
[367192998,1750697461209,-500.0,0.00021673,2]
[367192999,1750697461219,-500.0,0.00021673,2]
[367193000,1750697461228,-500.0,0.00021673,2]
[367193001,1750697461238,-500.0,0.00021673,2]
[367193002,1750697461249,-500.0,0.00021673,2]
[367193003,1750697461259,-500.0,0.00021673,2]
[367193004,1750697461269,-500.0,0.00021673,2]
[367193005,1750697461278,-500.23184163,0.00021673,2]
[367193006,1750697461288,-300.0,0.00021673,2]
[367193007,1750697461298,-500.13124526,0.00021673,2]
[367193008,1750697461308,-500.0,0.00021673,2]
[367193009,1750697461317,-500.0,0.00021673,2]
[367193010,1750697461327,-500.0,0.00021673,2]
[367193011,1750697461337,-600.0,0.00021673,2]
[367193012,1750697461347,-500.0,0.00021673,2]
[367193013,1750697461356,-500.0,0.00021673,2]
[367193014,1750697461366,-500.0,0.00021673,2]
[367193015,1750697461377,-500.0,0.00021673,2]
[367193016,1750697461387,-518.38970468,0.00021673,2]
[367193017,1750697461396,-500.0,0.00021673,2]
[367193018,1750697461406,-500.0,0.00021673,2]
[367193019,1750697461416,-500.0,0.00021673,2]
[367193020,1750697461426,-259.13539318,0.00021673,2]
[367193021,1750697461435,-500.0,0.00021673,2]